fUSD/lending_fUSD_20240903
["ID","MTS","AMOUNT","RATE_DAILY","PERIOD"]
[337027273,1725325905367,-4338.2,0.00019178,2]
[337027274,1725325905378,-1287.92,0.00019178,2]
[337027275,1725325905388,-2550.3,0.00019178,2]
[337027276,1725325905397,-3102.77,0.00019178,2]
[337027277,1725325905407,-1490.22,0.00019178,2]
[337027278,1725325905417,-3428.64,0.00019178,2]
[337027279,1725325905427,-4338.2,0.00019178,2]
[337027280,1725325905437,-251.102708,0.00019178,2]
[337027281,1725325905447,-1287.92,0.00019178,2]
[337027282,1725325905458,-2550.3,0.00019178,2]
[337027283,1725325905468,-3102.77,0.00019178,2]
[337027284,1725325905478,-1490.22,0.00019178,2]
[337027285,1725325905488,-3428.64,0.00019178,2]
[337027286,1725325905497,-4338.2,0.00019178,2]
[337027287,1725325905507,-2550.3,0.00019178,2]
[337027288,1725325905517,-1287.92,0.00019178,2]
[337027289,1725325905526,-3102.77,0.00019178,2]
[337027290,1725325905535,-251.102708,0.00019178,2]
[337027291,1725325905545,-1490.22,0.00019178,2]
[337027292,1725325905555,-3428.64,0.00019178,2]
[337027293,1725325905564,-2550.3,0.00019178,2]
[337027294,1725325905574,-4338.2,0.00019178,2]
[337027295,1725325905583,-1287.92,0.00019178,2]
[337027296,1725325905593,-3102.77,0.00019178,2]
[337027297,1725325905603,-1490.22,0.00019178,2]
[337027298,1725325905616,-251.102708,0.00019178,2]
[337027299,1725325905626,-2550.3,0.00019178,2]
[337027300,1725325905636,-3428.64,0.00019178,2]
[337027301,1725325905649,-4338.2,0.00019178,2]
[337027302,1725325905660,-1287.92,0.00019178,2]
[337027303,1725325905669,-251.102704,0.00019178,2]
[337027304,1725325905679,-2550.3,0.00019178,2]
[337027305,1725325905692,-4338.2,0.00019178,2]
[337027306,1725325905703,-3102.77,0.00019178,2]
[337027307,1725325905712,-1287.92,0.00019178,2]
[337027308,1725325905723,-500.0,0.00019178,2]
[337027309,1725325905734,-3428.64,0.00019178,2]
[337027310,1725325905743,-2550.3,0.00019178,2]
[337027311,1725325905753,-1490.22,0.00019178,2]
[337027312,1725325905764,-4338.2,0.00019178,2]
[337027313,1725325905774,-3102.77,0.00019178,2]
[337027314,1725325905784,-1287.92,0.00019178,2]
[337027315,1725325905795,-3428.64,0.00019178,2]
[337027316,1725325905805,-1490.22,0.00019178,2]
[337027317,1725325905815,-3102.77,0.00019178,2]
[337027318,1725325905825,-4338.2,0.00019178,2]
[337027319,1725325905835,-2550.3,0.00019178,2]
[337027320,1725325905845,-500.0,0.00019178,2]
[337027321,1725325905855,-1287.92,0.00019178,2]
[337027322,1725325905866,-3428.64,0.00019178,2]
[337027323,1725325905878,-1490.22,0.00019178,2]
[337027324,1725325905888,-3102.77,0.00019178,2]
[337027325,1725325905898,-4338.2,0.00019178,2]
[337027326,1725325905909,-2550.3,0.00019178,2]
[337027327,1725325905920,-3428.64,0.00019178,2]
[337027328,1725325905930,-1287.92,0.00019178,2]
[337027329,1725325905940,-3102.77,0.00019178,2]
[337027330,1725325905950,-495.112537,0.00019178,2]
[337027331,1725325905960,-4338.2,0.00019178,2]
[337027332,1725325905970,-1490.22,0.00019178,2]
[337027333,1725325905980,-2550.3,0.00019178,2]
[337027334,1725325905990,-1287.92,0.00019178,2]
[337027335,1725325906000,-3428.68944571,0.00019178,2]
[337027336,1725325906010,-3102.77,0.00019178,2]
[337027337,1725325906020,-1490.22,0.00019178,2]
[337027338,1725325906031,-4338.2,0.00019178,2]
[337027339,1725325906041,-2550.3,0.00019178,2]
[337027340,1725325906051,-1287.92,0.00019178,2]
[337027341,1725325906061,-495.112537,0.00019178,2]
[337027342,1725325906071,-3102.77,0.00019178,2]
[337027343,1725325906082,-1490.22,0.00019178,2]
[337027344,1725325906093,-2550.3,0.00019178,2]
[337027345,1725325906104,-4338.2,0.00019178,2]
[337027346,1725325906114,-1287.92,0.00019178,2]
[337027347,1725325906124,-3102.77,0.00019178,2]
[337027348,1725325906135,-1490.22,0.00019178,2]
[337027349,1725325906146,-1287.92,0.00019178,2]
[337027350,1725325906158,-495.112537,0.00019178,2]
[337027351,1725325906169,-3102.77,0.00019178,2]
[337027352,1725325906179,-1490.4,0.00019178,2]
[337027353,1725325906189,-1287.92,0.00019178,2]
[337027354,1725325906198,-4338.2,0.00019178,2]
[337027355,1725325906208,-2550.3,0.00019178,2]
[337027356,1725325906218,-3102.77,0.00019178,2]
[337027357,1725325906228,-495.112537,0.00019178,2]
[337027358,1725325906237,-4338.2,0.00019178,2]
[337027359,1725325906247,-3102.77,0.00019178,2]
[337027360,1725325906257,-2550.3,0.00019178,2]
[337027361,1725325906267,-4338.2,0.00019178,2]
[337027362,1725325906277,-495.112537,0.00019178,2]
[337027363,1725325906287,-510.49,0.00019178,2]
[337027364,1725325906297,-2550.3,0.00019178,2]
[337027365,1725325906308,-4338.2,0.00019178,2]
[337027366,1725325906319,-3102.77,0.00019178,2]
[337027367,1725325906330,-495.112537,0.00019178,2]
[337027368,1725325906340,-1287.92,0.00019178,2]
[337027369,1725325906351,-510.49,0.00019178,2]
[337027370,1725325906362,-2550.3,0.00019178,2]
[337027371,1725325906373,-4338.23861751,0.00019178,2]
[337027372,1725325906384,-3102.77,0.00019178,2]
[337027373,1725325906395,-1287.92,0.00019178,2]
[337027374,1725325906404,-495.112537,0.00019178,2]
[337027375,1725325906415,-510.49,0.00019178,2]
[337027376,1725325906425,-2550.43,0.00019178,2]
[337027377,1725325906435,-3102.77,0.00019178,2]
[337027378,1725325906444,-1287.92,0.00019178,2]
[337027379,1725325906454,-495.112537,0.00019178,2]
[337027380,1725325906464,-510.49,0.00019178,2]
[337027381,1725325906473,-3102.77,0.00019178,2]
[337027382,1725325906484,-510.49,0.00019178,2]
[337027383,1725325906494,-495.112537,0.00019178,2]
[337027384,1725325906504,-3102.77,0.00019178,2]
[337027385,1725325906514,-1287.92,0.00019178,2]
[337027386,1725325906524,-510.49,0.00019178,2]
[337027387,1725325906533,-495.112537,0.00019178,2]
[337027388,1725325906543,-3102.77,0.00019178,2]
[337027389,1725325906553,-1287.92,0.00019178,2]
[337027390,1725325906563,-1370.74,0.00019178,2]
[337027391,1725325906573,-3102.77,0.00019178,2]
[337027392,1725325906582,-495.112537,0.00019178,2]
[337027393,1725325906592,-1287.92,0.00019178,2]
[337027394,1725325906612,-1370.74,0.00019178,2]
[337027395,1725325906626,-510.49,0.00019178,2]
[337027396,1725325906636,-1287.92,0.00019178,2]
[337027397,1725325906646,-1370.74,0.00019178,2]
[337027398,1725325906657,-510.49,0.00019178,2]
[337027399,1725325906667,-495.112537,0.00019178,2]
[337027400,1725325906677,-3102.93,0.00019178,2]
[337027401,1725325906688,-1287.92,0.00019178,2]
[337027402,1725325906700,-1370.74,0.00019178,2]
[337027403,1725325906710,-622.9,0.00019178,2]
[337027404,1725325906720,-510.49,0.00019178,2]
[337027405,1725325906730,-1288.08513435,0.00019178,2]
[337027406,1725325906740,-495.112537,0.00019178,2]
[337027407,1725325906750,-622.9,0.00019178,2]
[337027408,1725325906760,-1370.74,0.00019178,2]
[337027409,1725325906770,-510.49,0.00019178,2]
[337027410,1725325906779,-622.9,0.00019178,2]
[337027411,1725325906790,-495.112537,0.00019178,2]
[337027412,1725325906801,-466.12347372,0.00019178,2]
[337027413,1725325906829,-904.61652628,0.00019178,2]
[337027414,1725325906841,-510.49,0.00019178,2]
[337027415,1725325906852,-613.8,0.00019178,2]
[337027416,1725325906862,-622.9,0.00019178,2]
[337027417,1725325906871,-320.01022248,0.00019178,2]
[337027418,1725325906883,-175.10231452,0.00019178,2]
[337027419,1725325906895,-1192.49144066,0.00019178,2]
[337027420,1725325906909,-178.24855934,0.00019178,2]
[337027421,1725325906919,-510.49,0.00019178,2]
[337027422,1725325906931,-613.8,0.00019178,2]
[337027423,1725325906942,-622.9,0.00019178,2]
[337027424,1725325906954,-1370.74,0.00019178,2]
[337027425,1725325906966,-510.49,0.00019178,2]
[337027426,1725325906976,-495.112537,0.00019178,2]
[337027427,1725325906987,-613.8,0.00019178,2]
[337027428,1725325906998,-622.9,0.00019178,2]
[337027429,1725325907008,-510.49,0.00019178,2]
[337027430,1725325907017,-1370.74,0.00019178,2]
[337027431,1725325907027,-495.112537,0.00019178,2]
[337027432,1725325907037,-613.8,0.00019178,2]
[337027433,1725325907046,-622.9,0.00019178,2]
[337027434,1725325907056,-510.49,0.00019178,2]
[337027435,1725325907066,-1370.74,0.00019178,2]
[337027436,1725325907075,-613.8,0.00019178,2]
[337027437,1725325907086,-495.112537,0.00019178,2]
[337027438,1725325907096,-622.9,0.00019178,2]
[337027439,1725325907106,-510.49,0.00019178,2]
[337027440,1725325907330,-1370.74,0.00019178,2]
[337027441,1725325907346,-613.8,0.00019178,2]
[337027442,1725325907355,-495.112537,0.00019178,2]
[337027443,1725325907365,-622.9,0.00019178,2]
[337027444,1725325907374,-67.09368231,0.00019178,2]
[337027445,1725325907386,-443.39631769,0.00019178,2]
[337027446,1725325907395,-165.07575451,0.00019178,2]
[337027447,1725325907407,-448.72424549,0.00019178,2]
[337027448,1725325907416,-495.112531,0.00019178,2]
[337027449,1725325907426,-622.9,0.00019178,2]
[337027450,1725325907435,-164.10918351,0.00019178,2]
[337027451,1725325907447,-346.38081649,0.00019178,2]
[337027452,1725325907456,-613.8,0.00019178,2]
[337027453,1725325907465,-324.87490295,0.00019178,2]
[337027454,1725325907477,-253.44497898,0.00019178,2]
[337027455,1725325907491,-556.86577081,0.00019178,2]
[337027456,1725325907502,-235.55434726,0.00019178,2]
[337027457,1725325907511,-268.59765274,0.00019178,2]
[337027458,1725325907522,-241.89234726,0.00019178,2]
[337027459,1725325907531,-622.9,0.00019178,2]
[337027460,1725325907541,-613.8,0.00019178,2]
[337027461,1725325907550,-1370.74,0.00019178,2]
[337027462,1725325907560,-510.49,0.00019178,2]
[337027463,1725325907569,-622.9,0.00019178,2]
[337027464,1725325907578,-613.8,0.00019178,2]
[337027465,1725325907587,-510.49,0.00019178,2]
[337027466,1725325907597,-1370.74,0.00019178,2]
[337027467,1725325907607,-622.9,0.00019178,2]
[337027468,1725325907619,-613.8,0.00019178,2]
[337027469,1725325907629,-510.49,0.00019178,2]
[337027470,1725325907637,-1370.74,0.00019178,2]
[337027471,1725325907646,-613.8,0.00019178,2]
[337027472,1725325907657,-622.9,0.00019178,2]
[337027473,1725325907667,-510.49,0.00019178,2]
[337027474,1725325907677,-1370.74,0.00019178,2]
[337027475,1725325907686,-510.67,0.00019178,2]
[337027476,1725325907697,-1370.74,0.00019178,2]
[337027477,1725325907706,-613.8,0.00019178,2]
[337027478,1725325907715,-622.9,0.00019178,2]
[337027479,1725325907724,-1370.74,0.00019178,2]
[337027480,1725325907732,-613.8,0.00019178,2]
[337027481,1725325907742,-622.9,0.00019178,2]
[337027482,1725325907751,-1370.74,0.00019178,2]
[337027483,1725325907761,-622.9,0.00019178,2]
[337027484,1725325907770,-613.8,0.00019178,2]
[337027485,1725325907780,-151.0,0.00019178,2]
[337027486,1725325907792,-1370.74,0.00019178,2]
[337027487,1725325907801,-622.9,0.00019178,2]
[337027488,1725325907811,-1370.74,0.00019178,2]
[337027489,1725325907821,-367.13396378,0.00019178,2]
[337027490,1725325907834,-246.66603622,0.00019178,2]
[337027491,1725325907844,-622.9,0.00019178,2]
[337027492,1725325907853,-21.94809029,0.00019178,2]
[337027493,1725325907865,-296.33722413,0.00019178,2]
[337027494,1725325907879,-270.81874508,0.00019178,2]
[337027495,1725325907893,-24.6959405,0.00019178,2]
[337027496,1725325907905,-804.06175053,0.00019178,2]
[337027497,1725325907920,-566.67824947,0.00019178,2]
[337027498,1725325907929,-622.9,0.00019178,2]
[337027499,1725325907940,-207.11221057,0.00019178,2]
[337027500,1725325907953,-1163.62778943,0.00019178,2]
[337027501,1725325907962,-622.9,0.00019178,2]
[337027502,1725325907974,-613.8,0.00019178,2]
[337027503,1725325907984,-622.9,0.00019178,2]
[337027504,1725325907995,-1370.97402608,0.00019178,2]
[337027505,1725325908005,-622.9,0.00019178,2]
[337027506,1725325908014,-613.8,0.00019178,2]
[337027507,1725325908023,-622.92164717,0.00019178,2]
[337027508,1725325908033,-613.8,0.00019178,2]
[337027509,1725325908042,-613.8,0.00019178,2]
[337027510,1725325908052,-795.22,0.00019178,2]
[337027511,1725325908061,-613.8,0.00019178,2]
[337027512,1725325908071,-795.22,0.00019178,2]
[337027513,1725325908080,-613.8,0.00019178,2]
[337027514,1725325908090,-795.22,0.00019178,2]
[337027515,1725325908099,-614.03917538,0.00019178,2]
[337027516,1725325908108,-795.22,0.00019178,2]
[337027517,1725325908118,-795.22,0.00019178,2]
[337027518,1725325908127,-795.22,0.00019178,2]
[337027519,1725325908136,-795.22,0.00019178,2]
[337027520,1725325908146,-795.22,0.00019178,2]
[337027521,1725325908155,-795.22,0.00019178,2]
[337027522,1725325908164,-795.22,0.00019178,2]
[337027523,1725325908173,-795.22,0.00019178,2]
[337027524,1725325908182,-795.22,0.00019178,2]
[337027525,1725325908192,-500.0,0.00019178,2]
[337027526,1725325908201,-795.22,0.00019178,2]
[337027527,1725325908210,-500.0,0.00019178,2]
[337027528,1725325908219,-795.22,0.00019178,2]
[337027529,1725325908228,-500.0,0.00019178,2]
[337027530,1725325908237,-2178.19739827,0.00019178,2]
[337027531,1725325908250,-7022.70320461,0.00019178,2]
[337027532,1725325908262,-730.44939712,0.00019178,2]
[337027533,1725325908271,-795.22,0.00019178,2]
[337027534,1725325908280,-151.0,0.00019178,2]
[337027535,1725325908289,-9931.35,0.00019178,2]
[337027536,1725325908298,-795.22,0.00019178,2]
[337027537,1725325908308,-500.0,0.00019178,2]
[337027538,1725325908317,-537.9,0.00019178,2]
[337027539,1725325908326,-151.0,0.00019178,2]
[337027540,1725325908335,-1658.86966653,0.00019178,2]
[337027541,1725325908483,-388.75856295,0.00019078,2]
[337027542,1725325908494,-1705.4290847,0.00019078,2]
[337027543,1725325908503,-821.51515572,0.00019178,2]
[337027544,1725325908515,-800.90047991,0.00019178,2]
[337027545,1725325908526,-3558.0,0.00019178,2]
[337027546,1725325908537,-612.5,0.00019178,2]
[337027547,1725325908548,-2479.56469784,0.00019178,2]
[337027548,1725325908557,-795.22,0.00019178,2]
[337027549,1725325908566,-500.0,0.00019178,2]
[337027550,1725325908576,-151.0,0.00019178,2]
[337027551,1725325908585,-6749.75274223,0.00019178,2]
[337027552,1725325908596,-3181.59725777,0.00019178,2]
[337027553,1725325908606,-795.22,0.00019178,2]
[337027554,1725325908619,-500.0,0.00019178,2]
[337027555,1725325908628,-151.0,0.00019178,2]
[337027556,1725325908638,-795.22,0.00019178,2]
[337027557,1725325908647,-5916.75607765,0.00019178,2]
[337027558,1725325908659,-1243.9391314,0.00019178,2]
[337027559,1725325908670,-2770.65479095,0.00019178,2]
[337027560,1725325908681,-795.22,0.00019178,2]
[337027561,1725325908691,-295.823592,0.00019178,2]
[337027562,1725325908702,-475.25929212,0.00019178,2]
[337027563,1725325908713,-9456.09070788,0.00019178,2]
[337027564,1725325908723,-500.0,0.00019178,2]
[337027565,1725325908732,-9931.35,0.00019178,2]
[337027566,1725325908741,-795.22,0.00019178,2]
[337027567,1725325908749,-500.0,0.00019178,2]
[337027568,1725325908759,-9931.35,0.00019178,2]
[337027569,1725325908767,-795.22,0.00019178,2]
[337027570,1725325908777,-500.0,0.00019178,2]
[337027571,1725325908785,-9931.35,0.00019178,2]
[337027572,1725325908795,-795.22,0.00019178,2]
[337027573,1725325908804,-9931.35,0.00019178,2]
[337027574,1725325908813,-795.45,0.00019178,2]
[337027575,1725325908822,-500.0,0.00019178,2]
[337027576,1725325908831,-9931.35,0.00019178,2]
[337027577,1725325908841,-500.0,0.00019178,2]
[337027578,1725325908850,-9931.35,0.00019178,2]
[337027579,1725325908859,-500.0,0.00019178,2]
[337027580,1725325908868,-9931.35,0.00019178,2]
[337027581,1725325908877,-9931.35,0.00019178,2]
[337027582,1725325908886,-500.0,0.00019178,2]
[337027583,1725325908896,-9931.35,0.00019178,2]
[337027584,1725325908905,-500.0,0.00019178,2]
[337027585,1725325908914,-9931.35,0.00019178,2]
[337027586,1725325908924,-9931.35,0.00019178,2]
[337027587,1725325908933,-417.4221208,0.00019178,2]
[337027588,1725325908942,-500.0,0.00019178,2]
[337027589,1725325908952,-9931.35,0.00019178,2]
[337027590,1725325908961,-500.0,0.00019178,2]
[337027591,1725325908970,-9931.35,0.00019178,2]
[337027592,1725325908979,-500.0,0.00019178,2]
[337027593,1725325908988,-5412.66198765,0.00019178,2]
[337027594,1725325909010,-997.62972712,0.00019178,2]
[337027595,1725325909022,-3521.05828523,0.00019178,2]
[337027596,1725325909031,-9931.35,0.00019178,2]
[337027597,1725325909040,-500.0,0.00019178,2]
[337027598,1725325909049,-9931.35,0.00019178,2]
[337027599,1725325909058,-500.0,0.00019178,2]
[337027600,1725325909067,-500.0,0.00019178,2]
[337027601,1725325909076,-9931.35,0.00019178,2]
[337027602,1725325909085,-500.0,0.00019178,2]
[337027603,1725325909094,-500.0,0.00019178,2]
[337027604,1725325909104,-9931.53404845,0.00019178,2]
[337027605,1725325909113,-500.0,0.00019178,2]
[337027606,1725325909123,-500.0,0.00019178,2]
[337027607,1725325909132,-500.0,0.00019178,2]
[337027608,1725325909141,-500.0,0.00019178,2]
[337027609,1725325909151,-500.0,0.00019178,2]
[337027610,1725325909159,-500.0,0.00019178,2]
[337027611,1725325909169,-500.0,0.00019178,2]
[337027612,1725325909179,-500.0,0.00019178,2]
[337027613,1725325909188,-500.0,0.00019178,2]
[337027614,1725325909198,-500.0,0.00019178,2]
[337027615,1725325909207,-500.0,0.00019178,2]
[337027616,1725325909217,-500.0,0.00019178,2]
[337027617,1725325909226,-500.0,0.00019178,2]
[337027618,1725325909235,-3995.52,0.00019178,2]
[337027619,1725325909245,-500.0,0.00019178,2]
[337027620,1725325909254,-209.71756001,0.00019178,2]
[337027621,1725325909267,-3785.80243999,0.00019178,2]
[337027622,1725325909276,-642.447178,0.00019178,2]
[337027623,1725325909286,-500.0,0.00019178,2]
[337027624,1725325909295,-500.0,0.00019178,2]
[337027625,1725325909305,-3995.52,0.00019178,2]
[337027626,1725325909314,-642.447178,0.00019178,2]
[337027627,1725325909324,-500.0,0.00019178,2]
[337027628,1725325909334,-500.0,0.00019178,2]
[337027629,1725325909343,-590.71573856,0.00019178,2]
[337027630,1725325909355,-275.79788184,0.00019178,2]
[337027631,1725325909367,-327.12129972,0.00019178,2]
[337027632,1725325909958,-384.34999965,0.00019178,2]
[337027633,1725325909969,-1131.57062286,0.00019178,2]
[337027634,1725325909980,-1285.96445737,0.00019178,2]
[337027635,1725325909989,-642.447178,0.00019178,2]
[337027636,1725325909999,-452.06030946,0.00019178,2]
[337027637,1725325910009,-500.0,0.00019178,2]
[337027638,1725325910019,-3995.52,0.00019178,2]
[337027639,1725325910029,-642.447178,0.00019178,2]
[337027640,1725325910038,-500.0,0.00019178,2]
[337027641,1725325910048,-1232.28442437,0.00019178,2]
[337027642,1725325910060,-2763.23557563,0.00019178,2]
[337027643,1725325910070,-642.447178,0.00019178,2]
[337027644,1725325910079,-500.0,0.00019178,2]
[337027645,1725325910089,-3995.52,0.00019178,2]
[337027646,1725325910100,-500.0,0.00019178,2]
[337027647,1725325910110,-3995.52,0.00019178,2]
[337027648,1725325910119,-642.447178,0.00019178,2]
[337027649,1725325910129,-500.0,0.00019178,2]
[337027650,1725325910140,-3995.52,0.00019178,2]
[337027651,1725325910151,-642.447178,0.00019178,2]
[337027652,1725325910162,-223.1199567,0.00019178,2]
[337027653,1725325910171,-3995.52,0.00019178,2]
[337027654,1725325910181,-642.447178,0.00019178,2]
[337027655,1725325910191,-3995.52,0.00019178,2]
[337027656,1725325910201,-642.447178,0.00019178,2]
[337027657,1725325910211,-3995.52,0.00019178,2]
[337027658,1725325910221,-513.86048319,0.00019178,2]
[337027659,1725325910232,-642.447178,0.00019178,2]
[337027660,1725325910242,-500.0,0.00019178,2]
[337027661,1725325910252,-3995.52,0.00019178,2]
[337027662,1725325910263,-500.0,0.00019178,2]
[337027663,1725325910273,-642.447178,0.00019178,2]
[337027664,1725325910283,-3995.52,0.00019178,2]
[337027665,1725325910292,-500.0,0.00019178,2]
[337027666,1725325910303,-642.447178,0.00019178,2]
[337027667,1725325910312,-2862.40014551,0.00019178,2]
[337027668,1725325910435,-784.48609248,0.00019178,2]
[337027669,1725325910447,-348.63376201,0.00019178,2]
[337027670,1725325910457,-500.0,0.00019178,2]
[337027671,1725325910466,-199.16298798,0.00019178,2]
[337027672,1725325910477,-1445.87941935,0.00019178,2]
[337027673,1725325910514,-685.36792495,0.00019178,2]
[337027674,1725325910524,-1665.10966772,0.00019178,2]
[337027675,1725325910534,-88.18754824,0.00019178,2]
[337027676,1725325910572,-547.84176427,0.00019178,2]
[337027677,1725325910586,-6.41786549,0.00019178,2]
[337027678,1725325910595,-500.0,0.00019178,2]
[337027679,1725325910605,-3995.52,0.00019178,2]
[337027680,1725325910616,-642.447178,0.00019178,2]
[337027681,1725325910625,-500.0,0.00019178,2]
[337027682,1725325910634,-3995.52,0.00019178,2]
[337027683,1725325910643,-642.447178,0.00019178,2]
[337027684,1725325910651,-500.0,0.00019178,2]
[337027685,1725325910661,-3995.52,0.00019178,2]
[337027686,1725325910670,-500.0,0.00019178,2]
[337027687,1725325910681,-642.447178,0.00019178,2]
[337027688,1725325910690,-3995.52,0.00019178,2]
[337027689,1725325910700,-159.13051301,0.00019178,2]
[337027690,1725325910709,-642.447178,0.00019178,2]
[337027691,1725325910718,-3995.52,0.00019178,2]
[337027692,1725325910727,-642.447178,0.00019178,2]
[337027693,1725325910736,-3995.52,0.00019178,2]
[337027694,1725325910745,-642.447178,0.00019178,2]
[337027695,1725325910754,-3995.52,0.00019178,2]
[337027696,1725325910763,-642.44718,0.00019178,2]
[337027697,1725325910772,-1990.052407,0.00019178,2]
[337027698,1725325910781,-3995.52,0.00019178,2]
[337027699,1725325910790,-1990.052407,0.00019178,2]
[337027700,1725325910800,-1990.052407,0.00019178,2]
[337027701,1725325910810,-1990.052407,0.00019178,2]
[337027702,1725325910819,-1948.51,0.00019178,2]
[337027703,1725325910829,-1079.73358057,0.00019178,2]
[337027704,1725325910841,-620.1702649,0.00019178,2]
[337027705,1725325910853,-290.14856153,0.00019178,2]
[337027706,1725325910862,-1948.51,0.00019178,2]
[337027707,1725325910871,-434.74260807,0.00019178,2]
[337027708,1725325910882,-1555.30979893,0.00019178,2]
[337027709,1725325910892,-378.68318107,0.00019178,2]
[337027710,1725325910903,-1455.60002482,0.00019178,2]
[337027711,1725325910914,-114.22679411,0.00019178,2]
[337027712,1725325910923,-558.4671902,0.00019178,2]
[337027713,1725325910938,-739.27230813,0.00019178,2]
[337027714,1725325910948,-692.31290867,0.00019178,2]
[337027715,1725325910958,-1114.25351964,0.00019178,2]
[337027716,1725325910970,-373.49586585,0.00019178,2]
[337027717,1725325910983,-460.76061451,0.00019178,2]
[337027718,1725325910994,-199.56167862,0.00019178,2]
[337027719,1725325911006,-640.13968842,0.00019178,2]
[337027720,1725325911018,-253.52,0.00019178,2]
[337027721,1725325912818,150.0,0.00021703,120]
[337027722,1725325950769,150.0,0.00021481,120]
[337027723,1725326005541,500.0,0.00026419,120]
[337027724,1725326010753,150.0,0.00021687,120]
[337027725,1725326010930,158.4,0.00010959,2]
[337027726,1725326131295,150.0,0.00024026,120]
[337027727,1725326190801,150.0,0.00026974,120]
[337027728,1725326309969,365.15,0.00024706,120]
[337027729,1725326310187,365.15,0.00026952,120]
[337027730,1725326362497,550.0,0.00011,2]
[337027731,1725326363598,600.0,0.00013,2]
[337027732,1725326602507,500.0,0.00026559,120]
[337027733,1725326708469,1276.96040466,0.00013,2]
[337027734,1725326729415,3172.26052996,0.000101,2]
[337027735,1725326751178,522.82863603,0.00010988,2]
[337027736,1725326753743,7665.00101707,0.00010399,2]
[337027737,1725326795255,182.92,0.00010959,2]
[337027738,1725326856396,902.65456584,0.0001294,7]
[337027743,1725326910845,150.0,0.00021654,120]
[337027744,1725326920018,182.58,0.00024692,120]
[337027751,1725327031604,-172.24,0.00013699,2]
[337027752,1725327031614,-150.0,0.00014899,2]
[337027754,1725327031624,-201.78608961,0.000149,2]
[337027755,1725327031633,-1154.22532554,0.000149,2]
[337027759,1725327031753,-8004.09835654,0.000149,2]
[337027760,1725327031898,-26978.14290206,0.000149,2]
[337027761,1725327031909,-4581.72719345,0.000149,2]
[337027762,1725327031918,-1832.41419172,0.000149,2]
[337027763,1725327031927,-310.82371086,0.000149,2]
[337027764,1725327031936,-1058.9199685,0.000149,2]
[337027765,1725327031945,-137.42167934,0.00014973,2]
[337027766,1725327031956,-266.95294903,0.00014973,2]
[337027768,1725327031967,-95.62537163,0.00014973,2]
[337027770,1725327031976,-500.0,0.00014973,2]
[337027771,1725327031986,-433.47888198,0.00014973,2]
[337027772,1725327031995,-154.66,0.0001499,2]
[337027773,1725327032004,-154.66,0.0001499,2]
[337027774,1725327032013,-154.66,0.0001499,2]
[337027775,1725327032022,-154.66,0.0001499,2]
[337027776,1725327032031,-154.66,0.0001499,2]
[337027777,1725327032040,-154.66,0.0001499,2]
[337027778,1725327032049,-154.66,0.0001499,2]
[337027779,1725327032058,-154.66,0.0001499,2]
[337027780,1725327032067,-154.66,0.0001499,2]
[337027781,1725327032077,-154.66,0.0001499,2]
[337027782,1725327032086,-154.66,0.0001499,2]
[337027783,1725327032095,-154.66,0.0001499,2]
[337027784,1725327032104,-154.66,0.0001499,2]
[337027785,1725327032114,-154.66,0.0001499,2]
[337027786,1725327032124,-154.66,0.0001499,2]
[337027787,1725327032133,-154.66,0.0001499,2]
[337027788,1725327032142,-154.66,0.0001499,2]